[Event "Live Chess"]
[Site "Chess.com"]
[Date "2024.06.01"]
[Round "-"]
[White "imchessive"]
[Black "NeilDruggan73"]
[Result "0-1"]
[WhiteElo "1572"]
[BlackElo "1735"]
[TimeControl "300"]
[EndTime "12:17:33 PDT"]
[Termination "NeilDruggan73 won by checkmate"]

1. d4 {[%clk 0:04:58.8]} 1... Nf6 {[%clk 0:04:56.5]} 2. c4 {[%clk 0:04:57.7]}
2... g6 {[%clk 0:04:31.6]} 3. Nf3 {[%clk 0:04:56.2]} 3... Bg7 {[%clk 0:04:30.2]}
4. g3 {[%clk 0:04:54.9]} 4... d6 {[%clk 0:04:29]} 5. Bg2 {[%clk 0:04:53.9]} 5...
O-O {[%clk 0:04:28.5]} 6. O-O {[%clk 0:04:52.4]} 6... Nc6 {[%clk 0:04:27.7]} 7.
Nc3 {[%clk 0:04:51.3]} 7... Bg4 {[%clk 0:04:24.8]} 8. e4 {[%clk 0:04:49.8]} 8...
e5 {[%clk 0:04:21.4]} 9. Ne2 {[%clk 0:04:27.3]} 9... Nxe4 {[%clk 0:04:13.2]} 10.
h3 {[%clk 0:04:16.1]} 10... Bxf3 {[%clk 0:04:08.9]} 11. Bxf3 {[%clk 0:04:14.5]}
11... Nf6 {[%clk 0:04:06.6]} 12. Bxc6 {[%clk 0:04:08.2]} 12... bxc6 {[%clk
0:04:04.6]} 13. Qa4 {[%clk 0:04:02.1]} 13... Qd7 {[%clk 0:03:59.6]} 14. d5
{[%clk 0:03:52.9]} 14... Qxh3 {[%clk 0:03:56.8]} 15. f3 {[%clk 0:03:27.9]} 15...
cxd5 {[%clk 0:03:47.3]} 16. cxd5 {[%clk 0:03:24.9]} 16... Nxd5 {[%clk
0:03:43.5]} 17. Qe4 {[%clk 0:03:20.6]} 17... Ne7 {[%clk 0:03:35.4]} 18. Be3
{[%clk 0:03:04.5]} 18... c5 {[%clk 0:03:32.5]} 19. Rf2 {[%clk 0:02:50]} 19... d5
{[%clk 0:03:23.8]} 20. Qc2 {[%clk 0:02:36.3]} 20... c4 {[%clk 0:02:50.3]} 21.
Rh2 {[%clk 0:02:34.2]} 21... Qf5 {[%clk 0:02:45.3]} 22. Qd2 {[%clk 0:02:31.6]}
22... Qxf3 {[%clk 0:02:41.9]} 23. Bh6 {[%clk 0:02:27.1]} 23... Nf5 {[%clk
0:02:23.9]} 24. Bxg7 {[%clk 0:02:23.6]} 24... Kxg7 {[%clk 0:02:22.6]} 25. Rf1
{[%clk 0:02:11.4]} 25... Qe3+ {[%clk 0:02:20.7]} 26. Qxe3 {[%clk 0:02:07.8]}
26... Nxe3 {[%clk 0:02:20.3]} 27. Rf3 {[%clk 0:02:03.4]} 27... Ng4 {[%clk
0:02:12.8]} 28. Rh4 {[%clk 0:01:50.7]} 28... f5 {[%clk 0:02:09.9]} 29. Nc3
{[%clk 0:01:31.2]} 29... d4 {[%clk 0:02:07]} 30. Nd5 {[%clk 0:01:29.1]} 30...
Rf7 {[%clk 0:01:57.8]} 31. Kg2 {[%clk 0:01:15.1]} 31... Rd8 {[%clk 0:01:56.4]}
32. Nb4 {[%clk 0:01:13]} 32... a5 {[%clk 0:01:53.6]} 33. Nc6 {[%clk 0:01:00.5]}
33... Rd5 {[%clk 0:01:44.7]} 34. Ra3 {[%clk 0:00:41.8]} 34... d3 {[%clk
0:01:44]} 35. Nxa5 {[%clk 0:00:24.1]} 35... d2 {[%clk 0:01:38.6]} 36. Rh1 {[%clk
0:00:22.7]} 36... d1=Q {[%clk 0:01:30.1]} 37. Rxd1 {[%clk 0:00:21.2]} 37... Rxd1
{[%clk 0:01:29.6]} 38. Nxc4 {[%clk 0:00:20.8]} 38... Rc7 {[%clk 0:01:23.5]} 39.
Rc3 {[%clk 0:00:19.6]} 39... e4 {[%clk 0:01:15.4]} 40. a4 {[%clk 0:00:17.8]}
40... Rd4 {[%clk 0:01:11.1]} 41. Nb6 {[%clk 0:00:15.1]} 41... Rxc3 {[%clk
0:01:09.1]} 42. bxc3 {[%clk 0:00:15]} 42... Rd2+ {[%clk 0:01:03.2]} 43. Kf1
{[%clk 0:00:13.2]} 43... Ra2 {[%clk 0:00:56.5]} 44. c4 {[%clk 0:00:11.4]} 44...
e3 {[%clk 0:00:54.3]} 45. c5 {[%clk 0:00:10.5]} 45... e2+ {[%clk 0:00:50.9]} 46.
Ke1 {[%clk 0:00:09.4]} 46... Ne5 {[%clk 0:00:46.6]} 47. Nd5 {[%clk 0:00:04.8]}
47... Nd3# {[%clk 0:00:45.1]} 0-1

[Event "Live Chess"]
[Site "Chess.com"]
[Date "2024.06.01"]
[Round "-"]
[White "Nazar-Makarchuk"]
[Black "Queensandpawns"]
[Result "0-1"]
[WhiteElo "1521"]
[BlackElo "2399"]
[TimeControl "300"]
[EndTime "12:17:50 PDT"]
[Termination "Queensandpawns won by resignation"]

1. e4 {[%clk 0:04:56.4]} 1... e5 {[%clk 0:04:59.9]} 2. Nf3 {[%clk 0:04:55.1]}
2... Nf6 {[%clk 0:04:59.8]} 3. Nxe5 {[%clk 0:04:52.9]} 3... Nc6 {[%clk
0:04:59.7]} 4. Nxc6 {[%clk 0:04:51.9]} 4... dxc6 {[%clk 0:04:59.6]} 5. Nc3
{[%clk 0:04:51.2]} 5... Bc5 {[%clk 0:04:58.9]} 6. Be2 {[%clk 0:04:49.9]} 6...
Qd4 {[%clk 0:04:55.3]} 7. O-O {[%clk 0:04:48.7]} 7... h5 {[%clk 0:04:54.9]} 8.
d3 {[%clk 0:04:44.6]} 8... Ng4 {[%clk 0:04:53.9]} 9. Bxg4 {[%clk 0:04:36.3]}
9... hxg4 {[%clk 0:04:52.6]} 10. Be3 {[%clk 0:04:35.9]} 10... Qe5 {[%clk
0:04:51.3]} 11. g3 {[%clk 0:04:31.9]} 11... Qh5 {[%clk 0:04:48]} 12. Re1 {[%clk
0:04:22.6]} 12... Qxh2+ {[%clk 0:04:35.4]} 13. Kf1 {[%clk 0:04:22]} 13... Bxe3
{[%clk 0:04:33.6]} 14. Rxe3 {[%clk 0:04:15.8]} 14... Be6 {[%clk 0:04:32.5]} 15.
Ke2 {[%clk 0:04:14.6]} 15... O-O-O {[%clk 0:04:29.8]} 16. Qg1 {[%clk 0:04:13.6]}
16... Qh5 {[%clk 0:04:27.9]} 17. Kd2 {[%clk 0:04:08.4]} 17... f5 {[%clk
0:04:26.5]} 18. Ne2 {[%clk 0:04:05.9]} 18... fxe4 {[%clk 0:04:23.6]} 19. Rxe4
{[%clk 0:04:02.8]} 19... Qf7 {[%clk 0:04:18.4]} 20. Nf4 {[%clk 0:04:00]} 20...
Bf5 {[%clk 0:04:14.4]} 21. Re3 {[%clk 0:03:51.3]} 21... g5 {[%clk 0:04:13.4]}
22. Ne2 {[%clk 0:03:43.6]} 22... Rhe8 {[%clk 0:04:12.3]} 23. Rxe8 {[%clk
0:03:40.6]} 23... Rxe8 {[%clk 0:04:12.2]} 24. Nc3 {[%clk 0:03:36.7]} 24... b5
{[%clk 0:04:08.8]} 25. Re1 {[%clk 0:03:36.1]} 25... b4 {[%clk 0:04:07.8]} 26.
Rxe8+ {[%clk 0:03:34.3]} 26... Qxe8 {[%clk 0:04:07.7]} 27. Ne2 {[%clk
0:03:28.6]} 27... Qe5 {[%clk 0:04:06.8]} 28. c3 {[%clk 0:03:16.8]} 28... bxc3+
{[%clk 0:04:03.3]} 29. Nxc3 {[%clk 0:03:16.2]} 29... Qd4 {[%clk 0:04:00.6]} 30.
Qe1 {[%clk 0:03:08.9]} 30... Qxd3+ {[%clk 0:03:59.3]} 0-1

[Event "Live Chess"]
[Site "Chess.com"]
[Date "2024.06.01"]
[Round "-"]
[White "Demyan7777"]
[Black "Silverback7829"]
[Result "1-0"]
[WhiteElo "1840"]
[BlackElo "1154"]
[TimeControl "300"]
[EndTime "12:18:05 PDT"]
[Termination "Demyan7777 won by checkmate"]

1. e4 {[%clk 0:04:51.7]} 1... e5 {[%clk 0:04:58]} 2. Nf3 {[%clk 0:04:50]} 2...
Nc6 {[%clk 0:04:56.1]} 3. Nc3 {[%clk 0:04:47.1]} 3... d6 {[%clk 0:04:54]} 4. d4
{[%clk 0:04:46.2]} 4... Bg4 {[%clk 0:04:47.8]} 5. d5 {[%clk 0:04:42.3]} 5...
Bxf3 {[%clk 0:04:41.9]} 6. Qxf3 {[%clk 0:04:39.4]} 6... Nd4 {[%clk 0:04:34.9]}
7. Qd1 {[%clk 0:04:37.8]} 7... Ne6 {[%clk 0:04:11.8]} 8. dxe6 {[%clk 0:04:35.4]}
8... fxe6 {[%clk 0:04:09.2]} 9. Bc4 {[%clk 0:04:34.6]} 9... Nf6 {[%clk
0:04:03.5]} 10. Bxe6 {[%clk 0:04:31]} 10... Be7 {[%clk 0:03:59.4]} 11. Bg5
{[%clk 0:04:24.1]} 11... Nd7 {[%clk 0:03:43.3]} 12. Bxe7 {[%clk 0:04:16.7]}
12... Qxe7 {[%clk 0:03:40.8]} 13. Nd5 {[%clk 0:04:15.8]} 13... Qxe6 {[%clk
0:03:35.6]} 14. Nxc7+ {[%clk 0:04:15]} 14... Ke7 {[%clk 0:03:23.4]} 15. Nxe6
{[%clk 0:04:13]} 15... Kxe6 {[%clk 0:03:22.2]} 16. Qd5+ {[%clk 0:04:12]} 16...
Kf6 {[%clk 0:03:18]} 17. O-O-O {[%clk 0:04:11.6]} 17... Rhe8 {[%clk 0:03:13.1]}
18. Qxd6+ {[%clk 0:04:10.9]} 18... Kf7 {[%clk 0:03:08.6]} 19. Qxd7+ {[%clk
0:04:10.1]} 19... Kg8 {[%clk 0:03:04.8]} 20. Qxb7 {[%clk 0:04:07.5]} 20... Rad8
{[%clk 0:02:57.1]} 21. Rxd8 {[%clk 0:04:05.4]} 21... Rxd8 {[%clk 0:02:55]} 22.
Qb3+ {[%clk 0:04:04.4]} 22... Kf8 {[%clk 0:02:40.7]} 23. Rd1 {[%clk 0:04:00.7]}
23... Rxd1+ {[%clk 0:02:36.2]} 24. Kxd1 {[%clk 0:04:00.4]} 24... h6 {[%clk
0:02:31]} 25. Qd5 {[%clk 0:04:00]} 25... Ke7 {[%clk 0:02:23.9]} 26. c4 {[%clk
0:03:59.6]} 26... Kf6 {[%clk 0:02:18.5]} 27. c5 {[%clk 0:03:59.4]} 27... g6
{[%clk 0:02:14.1]} 28. c6 {[%clk 0:03:59.1]} 28... Ke7 {[%clk 0:02:09]} 29. c7
{[%clk 0:03:58.7]} 29... a5 {[%clk 0:02:03.4]} 30. c8=Q {[%clk 0:03:57.7]} 30...
Kf6 {[%clk 0:01:54.2]} 31. Qce6+ {[%clk 0:03:57.3]} 31... Kg5 {[%clk 0:01:50.7]}
32. Qdxe5+ {[%clk 0:03:56.2]} 32... Kh4 {[%clk 0:01:39.8]} 33. Qh3# {[%clk
0:03:55.8]} 1-0

[Event "Live Chess"]
[Site "Chess.com"]
[Date "2024.06.01"]
[Round "-"]
[White "Tushinskiy"]
[Black "MellowAesthetic"]
[Result "1-0"]
[WhiteElo "2241"]
[BlackElo "2073"]
[TimeControl "300"]
[EndTime "12:18:12 PDT"]
[Termination "Tushinskiy won on time"]

1. d4 {[%clk 0:04:54.5]} 1... Nf6 {[%clk 0:04:57.9]} 2. c3 {[%clk 0:04:54.4]}
2... d5 {[%clk 0:04:55.9]} 3. Nf3 {[%clk 0:04:51.7]} 3... c5 {[%clk 0:04:54.8]}
4. Bf4 {[%clk 0:04:51.6]} 4... Nc6 {[%clk 0:04:53.7]} 5. e3 {[%clk 0:04:50.6]}
5... Qb6 {[%clk 0:04:51.4]} 6. Qc1 {[%clk 0:04:49.4]} 6... Bf5 {[%clk
0:04:47.8]} 7. Nbd2 {[%clk 0:04:48.5]} 7... e6 {[%clk 0:04:46.5]} 8. Be2 {[%clk
0:04:46.4]} 8... Be7 {[%clk 0:04:43.6]} 9. Nb3 {[%clk 0:04:45.5]} 9... cxd4
{[%clk 0:04:38.3]} 10. Nbxd4 {[%clk 0:04:45.4]} 10... Bg6 {[%clk 0:04:27.6]} 11.
Nxc6 {[%clk 0:04:42.8]} 11... bxc6 {[%clk 0:04:24.9]} 12. O-O {[%clk 0:04:42]}
12... O-O {[%clk 0:04:21.3]} 13. h3 {[%clk 0:04:40.1]} 13... Ne4 {[%clk
0:04:07.8]} 14. Ne5 {[%clk 0:04:36.6]} 14... Rfd8 {[%clk 0:03:29.2]} 15. Nxg6
{[%clk 0:04:32.1]} 15... hxg6 {[%clk 0:03:27.6]} 16. Bd3 {[%clk 0:04:31.4]}
16... Nf6 {[%clk 0:03:05.6]} 17. Rd1 {[%clk 0:04:27.6]} 17... c5 {[%clk
0:02:46.7]} 18. Qc2 {[%clk 0:04:24]} 18... c4 {[%clk 0:02:36.6]} 19. Be2 {[%clk
0:04:22]} 19... Ne4 {[%clk 0:02:30.5]} 20. Bxc4 {[%clk 0:04:13.2]} 20... Nxf2
{[%clk 0:01:49.3]} 21. Qxf2 {[%clk 0:03:42.2]} 21... dxc4 {[%clk 0:01:48.3]} 22.
Rf1 {[%clk 0:03:37.4]} 22... f6 {[%clk 0:01:19.7]} 23. Rae1 {[%clk 0:03:34.2]}
23... Bc5 {[%clk 0:01:08.1]} 24. Kh1 {[%clk 0:03:31.3]} 24... Rd3 {[%clk
0:01:02.2]} 25. Bh2 {[%clk 0:03:13.3]} 25... Rxe3 {[%clk 0:00:51.6]} 26. Rxe3
{[%clk 0:03:05.7]} 26... Bxe3 {[%clk 0:00:51.5]} 27. Qh4 {[%clk 0:03:04.9]}
27... Rd8 {[%clk 0:00:49.2]} 28. Qxc4 {[%clk 0:03:03]} 28... Rd2 {[%clk
0:00:41.4]} 29. b4 {[%clk 0:02:55.2]} 29... Kf7 {[%clk 0:00:34.4]} 30. a4 {[%clk
0:02:44.7]} 30... Qb7 {[%clk 0:00:32.5]} 31. Qg4 {[%clk 0:02:43.9]} 31... Qd5
{[%clk 0:00:25.5]} 32. c4 {[%clk 0:02:38.2]} 32... Qd3 {[%clk 0:00:21.5]} 33.
Qf3 {[%clk 0:02:32.4]} 33... Qxc4 {[%clk 0:00:17.9]} 34. b5 {[%clk 0:02:30.4]}
34... Bb6 {[%clk 0:00:13]} 35. Bg1 {[%clk 0:02:24]} 35... Qxa4 {[%clk 0:00:11]}
36. Bxb6 {[%clk 0:02:21.9]} 36... axb6 {[%clk 0:00:10.5]} 37. Qb7+ {[%clk
0:02:21.3]} 37... Kg8 {[%clk 0:00:10.2]} 38. Qxb6 {[%clk 0:02:20.5]} 38... Qe4
{[%clk 0:00:07.6]} 39. Rg1 {[%clk 0:02:15.5]} 39... Rd3 {[%clk 0:00:05.5]} 40.
Qb8+ {[%clk 0:02:14.4]} 40... Kh7 {[%clk 0:00:04.4]} 41. Kh2 {[%clk 0:02:13.8]}
41... e5 {[%clk 0:00:02.1]} 42. Qc8 {[%clk 0:02:04.7]} 42... Qf4+ {[%clk
0:00:01.7]} 43. Kh1 {[%clk 0:02:03.5]} 43... Rxh3+ {[%clk 0:00:01.4]} 44. Qxh3+
{[%clk 0:02:01.7]} 1-0

[Event "Live Chess"]
[Site "Chess.com"]
[Date "2024.06.01"]
[Round "-"]
[White "DarranAS"]
[Black "PaulHumphreys"]
[Result "0-1"]
[WhiteElo "1479"]
[BlackElo "1408"]
[TimeControl "300"]
[EndTime "12:18:21 PDT"]
[Termination "PaulHumphreys won by resignation"]

1. e4 {[%clk 0:04:55.6]} 1... e6 {[%clk 0:04:59.3]} 2. d4 {[%clk 0:04:51.7]}
2... d5 {[%clk 0:04:59.2]} 3. e5 {[%clk 0:04:50.7]} 3... c5 {[%clk 0:04:19.5]}
4. c3 {[%clk 0:04:47.8]} 4... Nc6 {[%clk 0:04:18.9]} 5. Nf3 {[%clk 0:04:45.7]}
5... Nge7 {[%clk 0:04:18.3]} 6. Bg5 {[%clk 0:04:28.4]} 6... h6 {[%clk
0:04:12.7]} 7. Bh4 {[%clk 0:04:22.8]} 7... g5 {[%clk 0:04:10.9]} 8. Bg3 {[%clk
0:04:20.9]} 8... Nf5 {[%clk 0:04:10.8]} 9. Bb5 {[%clk 0:04:03.7]} 9... cxd4
{[%clk 0:04:10.7]} 10. Nxd4 {[%clk 0:03:57.5]} 10... Nxd4 {[%clk 0:04:07.3]} 11.
cxd4 {[%clk 0:03:52.2]} 11... Qa5+ {[%clk 0:04:05.1]} 12. Nc3 {[%clk 0:03:47.8]}
12... Bb4 {[%clk 0:04:04.5]} 13. Bxc6+ {[%clk 0:03:40.7]} 13... bxc6 {[%clk
0:03:59.9]} 14. Qc2 {[%clk 0:03:35.6]} 14... Ba6 {[%clk 0:03:53.6]} 15. h4
{[%clk 0:03:20.5]} 15... g4 {[%clk 0:03:47.3]} 16. Bf4 {[%clk 0:03:16]} 16... h5
{[%clk 0:03:44.2]} 17. O-O-O {[%clk 0:02:52]} 17... Bxc3 {[%clk 0:03:41.7]} 18.
Qxc3 {[%clk 0:02:46.6]} 18... Qxc3+ {[%clk 0:03:40.5]} 19. bxc3 {[%clk
0:02:45.2]} 19... Bc4 {[%clk 0:03:37.6]} 20. Kb2 {[%clk 0:02:38.8]} 20... Rb8+
{[%clk 0:03:36.7]} 21. Ka3 {[%clk 0:02:37.9]} 21... Kd7 {[%clk 0:03:35.9]} 22.
Rb1 {[%clk 0:02:33.5]} 22... a6 {[%clk 0:03:24.2]} 23. Bg5 {[%clk 0:02:24.2]}
23... Rb5 {[%clk 0:03:19.8]} 24. Rb4 {[%clk 0:02:05]} 24... a5 {[%clk
0:03:13.7]} 25. Rxb5 {[%clk 0:01:58.5]} 25... cxb5 {[%clk 0:03:10.2]} 26. Rb1
{[%clk 0:01:56.1]} 26... Rb8 {[%clk 0:03:06.7]} 27. f3 {[%clk 0:01:45.4]} 27...
gxf3 {[%clk 0:03:02]} 28. gxf3 {[%clk 0:01:43.7]} 28... Be2 {[%clk 0:02:26.2]}
29. Bd2 {[%clk 0:01:29.8]} 29... Bxf3 {[%clk 0:02:21.2]} 30. Rf1 {[%clk
0:01:28.1]} 30... Be4 {[%clk 0:02:04.4]} 31. Rxf7+ {[%clk 0:01:26.1]} 31... Ke8
{[%clk 0:02:04.3]} 32. Rh7 {[%clk 0:01:17.6]} 32... Bxh7 {[%clk 0:02:00.5]} 0-1

[Event "Live Chess"]
[Site "Chess.com"]
[Date "2024.06.01"]
[Round "-"]
[White "MaksymYurii"]
[Black "booktrunk"]
[Result "0-1"]
[WhiteElo "933"]
[BlackElo "1371"]
[TimeControl "300"]
[EndTime "12:19:05 PDT"]
[Termination "booktrunk won by checkmate"]

1. e4 {[%clk 0:04:53.9]} 1... b6 {[%clk 0:04:52.1]} 2. d4 {[%clk 0:04:52.6]}
2... Bb7 {[%clk 0:04:50.2]} 3. Nc3 {[%clk 0:04:47.5]} 3... h6 {[%clk 0:04:37.5]}
4. Nf3 {[%clk 0:04:40.1]} 4... e6 {[%clk 0:04:32.9]} 5. Bd3 {[%clk 0:04:28]}
5... Nf6 {[%clk 0:04:29.1]} 6. e5 {[%clk 0:04:22.8]} 6... Nd5 {[%clk 0:04:24.1]}
7. Nxd5 {[%clk 0:04:12.4]} 7... Bxd5 {[%clk 0:04:22.6]} 8. O-O {[%clk
0:03:57.6]} 8... Be7 {[%clk 0:04:14.1]} 9. c4 {[%clk 0:03:42.7]} 9... Bb7 {[%clk
0:04:00.5]} 10. b4 {[%clk 0:03:23.6]} 10... O-O {[%clk 0:03:56.9]} 11. Bd2
{[%clk 0:02:38.8]} 11... Nc6 {[%clk 0:03:51.8]} 12. Qc1 {[%clk 0:02:37.3]} 12...
Nxb4 {[%clk 0:03:47.5]} 13. Bb1 {[%clk 0:02:22.5]} 13... Na6 {[%clk 0:03:37.5]}
14. Bxh6 {[%clk 0:02:20.7]} 14... gxh6 {[%clk 0:03:30.9]} 15. Qxh6 {[%clk
0:02:18.8]} 15... f5 {[%clk 0:03:22.4]} 16. g4 {[%clk 0:02:13.1]} 16... Rf7
{[%clk 0:03:12.6]} 17. gxf5 {[%clk 0:02:01.4]} 17... Rg7+ {[%clk 0:03:08.4]} 18.
Kh1 {[%clk 0:01:53.9]} 18... Bg5 {[%clk 0:03:03.2]} 19. Qh5 {[%clk 0:01:44.3]}
19... exf5 {[%clk 0:02:53.5]} 20. Bxf5 {[%clk 0:01:40]} 20... Qf8 {[%clk
0:02:51.8]} 21. Bh7+ {[%clk 0:01:20.6]} 21... Rxh7 {[%clk 0:02:47.2]} 22. Qxg5+
{[%clk 0:01:18.6]} 22... Rg7 {[%clk 0:02:42.4]} 23. Qh5 {[%clk 0:01:11.5]} 23...
Bxf3+ {[%clk 0:02:39.4]} 24. Qxf3 {[%clk 0:01:06.2]} 24... Qxf3# {[%clk
0:02:35.6]} 0-1

[Event "Live Chess"]
[Site "Chess.com"]
[Date "2024.06.01"]
[Round "-"]
[White "LL220284LL"]
[Black "Trecregin"]
[Result "0-1"]
[WhiteElo "2549"]
[BlackElo "1898"]
[TimeControl "300"]
[EndTime "12:19:19 PDT"]
[Termination "Trecregin won by resignation"]

1. c4 {[%clk 0:04:59.1]} 1... c5 {[%clk 0:04:58.6]} 2. g3 {[%clk 0:04:59]} 2...
g6 {[%clk 0:04:57.4]} 3. Bg2 {[%clk 0:04:58.9]} 3... Bg7 {[%clk 0:04:56.2]} 4.
Nf3 {[%clk 0:04:58.2]} 4... Nf6 {[%clk 0:04:55.2]} 5. O-O {[%clk 0:04:58.1]}
5... O-O {[%clk 0:04:54.1]} 6. Nc3 {[%clk 0:04:58]} 6... Nc6 {[%clk 0:04:52.8]}
7. d3 {[%clk 0:04:57.5]} 7... Rb8 {[%clk 0:04:50.3]} 8. Rb1 {[%clk 0:04:56.3]}
8... d6 {[%clk 0:04:48.3]} 9. a3 {[%clk 0:04:55.4]} 9... Bd7 {[%clk 0:04:46]}
10. b4 {[%clk 0:04:54.8]} 10... cxb4 {[%clk 0:04:44.6]} 11. axb4 {[%clk
0:04:54.7]} 11... a6 {[%clk 0:04:34.6]} 12. Bd2 {[%clk 0:04:53.3]} 12... b5
{[%clk 0:04:29.6]} 13. cxb5 {[%clk 0:04:49.2]} 13... axb5 {[%clk 0:04:29.5]} 14.
Qb3 {[%clk 0:04:47.9]} 14... Bg4 {[%clk 0:04:25.6]} 15. Rfc1 {[%clk 0:04:41.6]}
15... Bxf3 {[%clk 0:04:23]} 16. Bxf3 {[%clk 0:04:40.5]} 16... Nd4 {[%clk
0:04:22.4]} 17. Qd1 {[%clk 0:04:38]} 17... Nxf3+ {[%clk 0:04:21]} 18. exf3
{[%clk 0:04:37]} 18... d5 {[%clk 0:04:13.7]} 19. Ne2 {[%clk 0:04:30.1]} 19...
Qd7 {[%clk 0:04:09]} 20. Bc3 {[%clk 0:04:26.4]} 20... Rfe8 {[%clk 0:03:55.9]}
21. Be5 {[%clk 0:04:24.4]} 21... Rbc8 {[%clk 0:03:50.9]} 22. Nd4 {[%clk
0:04:20.2]} 22... Nh5 {[%clk 0:03:44]} 23. Bxg7 {[%clk 0:04:17.7]} 23... Kxg7
{[%clk 0:03:43.9]} 24. Qe2 {[%clk 0:04:14.3]} 24... e5 {[%clk 0:03:40.5]} 25.
Rxc8 {[%clk 0:04:12.9]} 25... Qxc8 {[%clk 0:03:34.9]} 26. Nxb5 {[%clk
0:04:11.7]} 26... Qc6 {[%clk 0:03:24.6]} 27. Nd4 {[%clk 0:03:56.4]} 27... exd4
{[%clk 0:03:13.5]} 28. Qb2 {[%clk 0:03:55.2]} 28... Qb6 {[%clk 0:03:11.4]} 29.
b5 {[%clk 0:03:54]} 29... Nf6 {[%clk 0:03:09.7]} 30. Rc1 {[%clk 0:03:52.6]}
30... Rb8 {[%clk 0:03:05.8]} 31. Kg2 {[%clk 0:03:49.8]} 31... Ne8 {[%clk
0:02:52]} 32. Qa1 {[%clk 0:03:46.5]} 32... Qxb5 {[%clk 0:02:17.4]} 33. Qxd4+
{[%clk 0:03:44.5]} 33... Nf6 {[%clk 0:02:16.8]} 34. g4 {[%clk 0:03:40.4]} 34...
Qb4 {[%clk 0:02:14.4]} 35. Qe5 {[%clk 0:03:36.5]} 35... Re8 {[%clk 0:02:11]} 36.
Qa1 {[%clk 0:03:34.3]} 36... h6 {[%clk 0:02:06.6]} 37. h4 {[%clk 0:03:24.8]}
37... d4 {[%clk 0:02:04.6]} 38. Rc4 {[%clk 0:03:20.3]} 38... Qd2 {[%clk
0:01:57.6]} 39. Qxd4 {[%clk 0:03:17.8]} 39... Re2 {[%clk 0:01:52.5]} 40. g5
{[%clk 0:03:15.6]} 40... hxg5 {[%clk 0:01:51.5]} 41. hxg5 {[%clk 0:03:14.2]}
41... Qxg5+ {[%clk 0:01:50.9]} 42. Kf1 {[%clk 0:03:03.1]} 42... Re8 {[%clk
0:01:46]} 43. Rc6 {[%clk 0:02:59.7]} 43... Rh8 {[%clk 0:01:38.8]} 44. f4 {[%clk
0:02:56.6]} 44... Rh1+ {[%clk 0:01:35.2]} 45. Ke2 {[%clk 0:02:55.3]} 45... Qg4+
{[%clk 0:01:33.8]} 46. Kd2 {[%clk 0:02:50.7]} 46... Qd1+ {[%clk 0:01:32.4]} 47.
Kc3 {[%clk 0:02:49.3]} 47... Qc1+ {[%clk 0:01:30]} 48. Kb4 {[%clk 0:02:48.4]}
48... Qxc6 {[%clk 0:01:29.2]} 0-1

[Event "Live Chess"]
[Site "Chess.com"]
[Date "2024.06.01"]
[Round "-"]
[White "Bob2pen"]
[Black "gmnorfolk"]
[Result "1-0"]
[WhiteElo "1921"]
[BlackElo "2036"]
[TimeControl "300"]
[EndTime "12:20:04 PDT"]
[Termination "Bob2pen won by resignation"]

1. e4 {[%clk 0:04:57.1]} 1... c5 {[%clk 0:04:59.6]} 2. Nf3 {[%clk 0:04:55]} 2...
d6 {[%clk 0:04:58.9]} 3. Bb5+ {[%clk 0:04:53.3]} 3... Bd7 {[%clk 0:04:55.7]} 4.
Bxd7+ {[%clk 0:04:52.1]} 4... Qxd7 {[%clk 0:04:54.9]} 5. O-O {[%clk 0:04:50.9]}
5... Nc6 {[%clk 0:04:53.2]} 6. c3 {[%clk 0:04:48.9]} 6... Nf6 {[%clk 0:04:52]}
7. Re1 {[%clk 0:04:48]} 7... e6 {[%clk 0:04:51.4]} 8. d4 {[%clk 0:04:46.9]} 8...
cxd4 {[%clk 0:04:51]} 9. cxd4 {[%clk 0:04:45.9]} 9... d5 {[%clk 0:04:50.9]} 10.
e5 {[%clk 0:04:45]} 10... Ne4 {[%clk 0:04:50.5]} 11. Nbd2 {[%clk 0:04:44.1]}
11... Nxd2 {[%clk 0:04:46.5]} 12. Bxd2 {[%clk 0:04:42.5]} 12... Be7 {[%clk
0:04:46.4]} 13. Rc1 {[%clk 0:04:41.3]} 13... O-O {[%clk 0:04:44.3]} 14. Rc3
{[%clk 0:04:40.2]} 14... Rac8 {[%clk 0:04:36.2]} 15. Rd3 {[%clk 0:04:38.2]}
15... Nb4 {[%clk 0:04:34.3]} 16. Bxb4 {[%clk 0:04:30]} 16... Bxb4 {[%clk
0:04:33.3]} 17. Re2 {[%clk 0:04:25.1]} 17... Rc7 {[%clk 0:04:31.6]} 18. Rc2
{[%clk 0:04:20.2]} 18... Rfc8 {[%clk 0:04:29.5]} 19. Rxc7 {[%clk 0:04:18.6]}
19... Qxc7 {[%clk 0:04:28.6]} 20. h4 {[%clk 0:04:13.1]} 20... h6 {[%clk
0:04:25.4]} 21. Rb3 {[%clk 0:04:05]} 21... a5 {[%clk 0:04:16.7]} 22. a3 {[%clk
0:04:03.5]} 22... Be7 {[%clk 0:04:14.2]} 23. Qd3 {[%clk 0:03:59.5]} 23... Qc1+
{[%clk 0:04:05]} 24. Qf1 {[%clk 0:03:54.4]} 24... Qc7 {[%clk 0:03:57.2]} 25. Kh2
{[%clk 0:03:51.4]} 25... f6 {[%clk 0:03:55.5]} 26. g3 {[%clk 0:03:48.4]} 26...
g5 {[%clk 0:03:47.5]} 27. Qb5 {[%clk 0:03:45.6]} 27... g4 {[%clk 0:03:44.4]} 28.
Nd2 {[%clk 0:03:39.3]} 28... fxe5 {[%clk 0:03:43.3]} 29. Qxb7 {[%clk 0:03:38.2]}
29... exd4 {[%clk 0:03:41.2]} 30. Kg2 {[%clk 0:03:24.5]} 30... e5 {[%clk
0:03:26.1]} 31. Qxd5+ {[%clk 0:03:22.1]} 31... Kg7 {[%clk 0:03:24.3]} 32. Rb7
{[%clk 0:03:18.7]} 32... Qc6 {[%clk 0:03:18.2]} 33. Qxc6 {[%clk 0:03:16.7]}
33... Rxc6 {[%clk 0:03:17.3]} 34. Rxe7+ {[%clk 0:03:15.5]} 34... Kf6 {[%clk
0:03:16.8]} 35. Ra7 {[%clk 0:03:11.5]} 35... Rc2 {[%clk 0:03:16.1]} 36. Ne4+
{[%clk 0:03:08.8]} 36... Kf5 {[%clk 0:03:15.3]} 37. Nd6+ {[%clk 0:03:01.3]}
37... Ke6 {[%clk 0:03:14]} 38. Ne4 {[%clk 0:02:55.9]} 38... Kd5 {[%clk
0:03:12.4]} 39. Nf6+ {[%clk 0:02:53.9]} 39... Kc6 {[%clk 0:03:05.7]} 40. Nxg4
{[%clk 0:02:51.6]} 40... e4 {[%clk 0:03:03.7]} 41. Rxa5 {[%clk 0:02:45.5]} 41...
e3 {[%clk 0:02:58.9]} 42. Kf3 {[%clk 0:02:39.9]} 42... e2 {[%clk 0:02:55.9]} 43.
Re5 {[%clk 0:02:33.4]} 43... d3 {[%clk 0:02:54.7]} 44. Re3 {[%clk 0:02:25.2]}
44... Rc1 {[%clk 0:02:50.3]} 45. Ne5+ {[%clk 0:02:17.9]} 45... Kd5 {[%clk
0:02:41.8]} 46. Nxd3 {[%clk 0:02:16.9]} 46... Rc2 {[%clk 0:02:41]} 47. Rxe2
{[%clk 0:02:13.5]} 1-0